[Event "*** Titled Tuesday Blitz"]
[Site "Chess.com"]
[Date "2020.10.27"]
[Round "2"]
[White "Shivagami"]
[Black "Miss_JJ20"]
[Result "1-0"]
[WhiteElo "2256"]
[BlackElo "2450"]
[TimeControl "180+1"]
[EndTime "10:17:57 PDT"]
[Termination "Shivagami won by resignation"]

1. e4 {[%clk 0:02:58]} 1... c5 {[%clk 0:02:57.8]} 2. Nc3 {[%clk 0:02:57.4]} 2...
Nc6 {[%clk 0:02:54.8]} 3. g3 {[%clk 0:02:57.3]} 3... g6 {[%clk 0:02:54.2]} 4.
Bg2 {[%clk 0:02:57.6]} 4... Bg7 {[%clk 0:02:54.9]} 5. d3 {[%clk 0:02:58.1]} 5...
e6 {[%clk 0:02:55.6]} 6. Be3 {[%clk 0:02:58.6]} 6... d6 {[%clk 0:02:56.2]} 7.
Qd2 {[%clk 0:02:58.8]} 7... h6 {[%clk 0:02:56.9]} 8. h4 {[%clk 0:02:56.9]} 8...
Nge7 {[%clk 0:02:54.1]} 9. Nge2 {[%clk 0:02:55]} 9... Rb8 {[%clk 0:02:53.6]} 10.
a4 {[%clk 0:02:50.9]} 10... Nd4 {[%clk 0:02:53.7]} 11. O-O {[%clk 0:02:44.3]}
11... a6 {[%clk 0:02:49.7]} 12. f4 {[%clk 0:02:37.8]} 12... f5 {[%clk
0:02:38.6]} 13. Nd1 {[%clk 0:02:20.7]} 13... O-O {[%clk 0:02:36.9]} 14. c3
{[%clk 0:02:17.5]} 14... Nb3 {[%clk 0:02:37.2]} 15. Qc2 {[%clk 0:01:56.1]} 15...
Nxa1 {[%clk 0:02:37.3]} 16. Qb1 {[%clk 0:01:56.5]} 16... d5 {[%clk 0:02:21.4]}
17. Qxa1 {[%clk 0:01:52]} 17... dxe4 {[%clk 0:02:21.2]} 18. dxe4 {[%clk
0:01:52.4]} 18... b6 {[%clk 0:02:11]} 19. Qa2 {[%clk 0:01:48.4]} 19... Kh7
{[%clk 0:02:10.3]} 20. Nf2 {[%clk 0:01:44.4]} 20... e5 {[%clk 0:02:00.6]} 21.
fxe5 {[%clk 0:01:31.3]} 21... Bxe5 {[%clk 0:02:00.5]} 22. Nf4 {[%clk 0:01:30.8]}
22... Qc7 {[%clk 0:01:47]} 23. exf5 {[%clk 0:01:21.2]} 23... Nxf5 {[%clk
0:01:42.6]} 24. Nd5 {[%clk 0:01:15.6]} 24... Qf7 {[%clk 0:01:23.3]} 25. Ng4
{[%clk 0:00:52.5]} 25... Be6 {[%clk 0:01:00.8]} 26. Nxe5 {[%clk 0:00:50.6]}
26... Qg8 {[%clk 0:00:53.3]} 27. Bf4 {[%clk 0:00:45.4]} 27... Rbd8 {[%clk
0:00:36.3]} 28. c4 {[%clk 0:00:44.4]} 28... Nd4 {[%clk 0:00:36.5]} 29. b3 {[%clk
0:00:41.9]} 29... b5 {[%clk 0:00:31.2]} 30. Qb2 {[%clk 0:00:30.6]} 30... bxc4
{[%clk 0:00:28.8]} 31. bxc4 {[%clk 0:00:30.8]} 31... Rb8 {[%clk 0:00:29.5]} 32.
Qd2 {[%clk 0:00:30.1]} 32... Rb3 {[%clk 0:00:26.4]} 33. Kh2 {[%clk 0:00:23.7]}
33... Rfb8 {[%clk 0:00:22.2]} 34. Nf6+ {[%clk 0:00:19.4]} 34... Kg7 {[%clk
0:00:22.2]} 35. Bxh6+ {[%clk 0:00:18.2]} 35... Kh8 {[%clk 0:00:22.1]} 36. Nxg8
{[%clk 0:00:18.3]} 36... Kxg8 {[%clk 0:00:22.1]} 37. Qg5 {[%clk 0:00:17.2]}
37... Bf5 {[%clk 0:00:20.9]} 38. Qf6 {[%clk 0:00:15.8]} 38... R3b7 {[%clk
0:00:19.7]} 39. Rxf5 {[%clk 0:00:12.6]} 39... Nxf5 {[%clk 0:00:19.4]} 40. Bd5+
{[%clk 0:00:12]} 1-0

[Event "*** Titled Tuesday Blitz"]
[Site "Chess.com"]
[Date "2020.10.27"]
[Round "2"]
[White "poppy73"]
[Black "r31415"]
[Result "0-1"]
[WhiteElo "2216"]
[BlackElo "2454"]
[TimeControl "180+1"]
[EndTime "10:17:57 PDT"]
[Termination "r31415 won on time"]

1. e4 {[%clk 0:03:00.9]} 1... e5 {[%clk 0:02:58.4]} 2. Nf3 {[%clk 0:03:00.8]}
2... Nc6 {[%clk 0:02:58.5]} 3. Bb5 {[%clk 0:03:00.5]} 3... Nf6 {[%clk
0:02:58.4]} 4. d3 {[%clk 0:02:58.7]} 4... Bc5 {[%clk 0:02:57.9]} 5. c3 {[%clk
0:02:56.9]} 5... d5 {[%clk 0:02:57.1]} 6. Nxe5 {[%clk 0:02:42.6]} 6... O-O
{[%clk 0:02:38.5]} 7. Nxc6 {[%clk 0:02:31.2]} 7... bxc6 {[%clk 0:01:38.3]} 8.
Bxc6 {[%clk 0:02:30]} 8... Bxf2+ {[%clk 0:01:38.8]} 9. Kxf2 {[%clk 0:01:50.2]}
9... Ng4+ {[%clk 0:01:37.5]} 10. Ke1 {[%clk 0:01:44.2]} 10... Qf6 {[%clk
0:01:30.6]} 11. Rf1 {[%clk 0:01:31]} 11... Qxc6 {[%clk 0:01:30.1]} 12. h3 {[%clk
0:01:30]} 12... Nf6 {[%clk 0:01:03.4]} 13. e5 {[%clk 0:01:23.3]} 13... Nd7
{[%clk 0:01:02.5]} 14. d4 {[%clk 0:01:19.3]} 14... f6 {[%clk 0:01:02.8]} 15. Be3
{[%clk 0:01:15.3]} 15... Ba6 {[%clk 0:00:59.6]} 16. Rf2 {[%clk 0:00:57.5]} 16...
fxe5 {[%clk 0:00:59.7]} 17. Nd2 {[%clk 0:00:49.1]} 17... exd4 {[%clk 0:00:48.5]}
18. Rxf8+ {[%clk 0:00:46.5]} 18... Rxf8 {[%clk 0:00:47.7]} 19. cxd4 {[%clk
0:00:44.6]} 19... Qb5 {[%clk 0:00:46]} 20. Nf3 {[%clk 0:00:38.4]} 20... Qxb2
{[%clk 0:00:42]} 21. Bd2 {[%clk 0:00:16]} 21... Qb5 {[%clk 0:00:38.6]} 22. Be3
{[%clk 0:00:08.8]} 22... Nb6 {[%clk 0:00:34.7]} 23. Kf2 {[%clk 0:00:08.7]} 23...
Nc4 {[%clk 0:00:30.8]} 24. Rb1 {[%clk 0:00:08.7]} 24... Qe8 {[%clk 0:00:17]} 25.
Rb3 {[%clk 0:00:07.3]} 25... Nd6 {[%clk 0:00:15.1]} 26. Kg1 {[%clk 0:00:05.9]}
26... Nf5 {[%clk 0:00:13.5]} 27. Bf2 {[%clk 0:00:05.4]} 27... Bc4 {[%clk
0:00:13.8]} 28. Rc3 {[%clk 0:00:04.9]} 28... Nd6 {[%clk 0:00:13.3]} 29. Ne5
{[%clk 0:00:05]} 29... Ne4 {[%clk 0:00:12.8]} 30. Nxc4 {[%clk 0:00:05]} 30...
Nxc3 {[%clk 0:00:12.5]} 31. Qb3 {[%clk 0:00:04.5]} 31... Ne2+ {[%clk 0:00:12.6]}
32. Kf1 {[%clk 0:00:03.6]} 32... Ng3+ {[%clk 0:00:07.3]} 0-1

[Event "*** Titled Tuesday Blitz"]
[Site "Chess.com"]
[Date "2020.10.27"]
[Round "2"]
[White "ajedrezsinlimites"]
[Black "Chamal_Gedgafov"]
[Result "0-1"]
[WhiteElo "2396"]
[BlackElo "2168"]
[TimeControl "180+1"]
[EndTime "10:17:57 PDT"]
[Termination "Chamal_Gedgafov won by resignation"]

1. e4 {[%clk 0:03:00.9]} 1... e6 {[%clk 0:02:59.2]} 2. d4 {[%clk 0:02:59.2]}
2... d5 {[%clk 0:02:59.7]} 3. exd5 {[%clk 0:03:00.1]} 3... exd5 {[%clk
0:02:59.3]} 4. Qf3 {[%clk 0:03:01]} 4... Nf6 {[%clk 0:02:59.9]} 5. Bf4 {[%clk
0:03:00.5]} 5... Bg4 {[%clk 0:02:56.1]} 6. Qb3 {[%clk 0:02:59.6]} 6... b6 {[%clk
0:02:50.5]} 7. h3 {[%clk 0:02:58.4]} 7... Bf5 {[%clk 0:02:42.3]} 8. Nc3 {[%clk
0:02:55.2]} 8... c6 {[%clk 0:02:40.7]} 9. g4 {[%clk 0:02:55]} 9... Bg6 {[%clk
0:02:36.2]} 10. O-O-O {[%clk 0:02:54.3]} 10... Be7 {[%clk 0:02:33.5]} 11. Re1
{[%clk 0:02:52.4]} 11... O-O {[%clk 0:02:33.1]} 12. Nf3 {[%clk 0:02:52]} 12...
Be4 {[%clk 0:02:28.9]} 13. Nxe4 {[%clk 0:02:39.8]} 13... Nxe4 {[%clk 0:02:27.2]}
14. Qe3 {[%clk 0:02:35.8]} 14... Bd6 {[%clk 0:02:23.6]} 15. Ne5 {[%clk
0:02:30.4]} 15... Qc7 {[%clk 0:02:14]} 16. Bg2 {[%clk 0:02:18.6]} 16... Re8
{[%clk 0:02:03.4]} 17. Bxe4 {[%clk 0:02:07.3]} 17... dxe4 {[%clk 0:02:02.6]} 18.
Bg3 {[%clk 0:02:06.6]} 18... f6 {[%clk 0:01:58.8]} 19. Nc4 {[%clk 0:02:05.6]}
19... Bxg3 {[%clk 0:01:58.1]} 20. Qxg3 {[%clk 0:02:02.7]} 20... Qxg3 {[%clk
0:01:53.1]} 21. fxg3 {[%clk 0:02:03.6]} 21... Re6 {[%clk 0:01:49.3]} 22. Nd2
{[%clk 0:02:00.3]} 22... e3 {[%clk 0:01:48.9]} 23. Nc4 {[%clk 0:01:58]} 23... e2
{[%clk 0:01:48.8]} 24. Rh2 {[%clk 0:01:56.1]} 24... Nd7 {[%clk 0:01:48.9]} 25.
Rhxe2 {[%clk 0:01:55.3]} 25... Rxe2 {[%clk 0:01:45.1]} 26. Rxe2 {[%clk
0:01:54.8]} 26... Kf8 {[%clk 0:01:45.5]} 27. Kd2 {[%clk 0:01:54]} 27... Rd8
{[%clk 0:01:42.9]} 28. c3 {[%clk 0:01:52.6]} 28... c5 {[%clk 0:01:34.4]} 29. Kc2
{[%clk 0:01:36.3]} 29... cxd4 {[%clk 0:01:33.3]} 30. cxd4 {[%clk 0:01:35.9]}
30... Nb8 {[%clk 0:01:23.4]} 31. Kc3 {[%clk 0:01:29.5]} 31... Nc6 {[%clk
0:01:22.9]} 32. Rd2 {[%clk 0:01:25.7]} 32... Ke7 {[%clk 0:01:14.6]} 33. d5
{[%clk 0:01:24]} 33... Ne5 {[%clk 0:01:13.6]} 34. g5 {[%clk 0:01:11.1]} 34...
Rc8 {[%clk 0:01:10.2]} 35. gxf6+ {[%clk 0:01:10.3]} 35... gxf6 {[%clk
0:01:09.4]} 36. d6+ {[%clk 0:01:09.3]} 36... Kd7 {[%clk 0:01:04.5]} 37. Rd4
{[%clk 0:01:01.7]} 37... b5 {[%clk 0:01:04]} 38. b3 {[%clk 0:01:00.9]} 38...
bxc4 {[%clk 0:01:03.3]} 39. bxc4 {[%clk 0:01:00.4]} 39... Rc6 {[%clk 0:01:02.2]}
40. Rh4 {[%clk 0:01:00.1]} 40... Kxd6 {[%clk 0:00:56.9]} 41. Rxh7 {[%clk
0:00:58.5]} 41... Rxc4+ {[%clk 0:00:56.3]} 42. Kd2 {[%clk 0:00:58.3]} 42... Ra4
{[%clk 0:00:55.8]} 43. h4 {[%clk 0:00:54.9]} 43... Rxa2+ {[%clk 0:00:53.1]} 44.
Ke3 {[%clk 0:00:54.6]} 44... a5 {[%clk 0:00:46.5]} 45. h5 {[%clk 0:00:53.9]}
45... Rh2 {[%clk 0:00:30.4]} 46. Kf4 {[%clk 0:00:45.8]} 46... Ke6 {[%clk
0:00:26.9]} 47. Rh8 {[%clk 0:00:38.1]} 47... Ng6+ {[%clk 0:00:22.4]} 0-1

[Event "*** Titled Tuesday Blitz"]
[Site "Chess.com"]
[Date "2020.10.27"]
[Round "2"]
[White "Gabrielian_Artur"]
[Black "kakakz"]
[Result "0-1"]
[WhiteElo "2788"]
[BlackElo "2380"]
[TimeControl "180+1"]
[EndTime "10:17:59 PDT"]
[Termination "kakakz won by resignation"]

1. e4 {[%clk 0:03:00.9]} 1... c5 {[%clk 0:02:58.1]} 2. Nc3 {[%clk 0:02:56.9]}
2... Nc6 {[%clk 0:02:56.6]} 3. Bb5 {[%clk 0:02:56.6]} 3... Nd4 {[%clk
0:02:52.7]} 4. Bc4 {[%clk 0:02:56.4]} 4... e6 {[%clk 0:02:50.9]} 5. Nf3 {[%clk
0:02:50.5]} 5... Nf6 {[%clk 0:02:47]} 6. O-O {[%clk 0:02:48]} 6... a6 {[%clk
0:02:45.4]} 7. Bb3 {[%clk 0:02:45.8]} 7... d6 {[%clk 0:02:36.2]} 8. d3 {[%clk
0:02:42.4]} 8... Nxb3 {[%clk 0:02:35.3]} 9. axb3 {[%clk 0:02:39.9]} 9... e5
{[%clk 0:02:36.2]} 10. h3 {[%clk 0:02:34.1]} 10... Be7 {[%clk 0:02:32.3]} 11.
Nd2 {[%clk 0:02:32.5]} 11... O-O {[%clk 0:02:22.7]} 12. Nc4 {[%clk 0:02:32.7]}
12... Be6 {[%clk 0:02:14.3]} 13. Re1 {[%clk 0:02:23.5]} 13... b5 {[%clk
0:02:09.2]} 14. Ne3 {[%clk 0:02:23.1]} 14... b4 {[%clk 0:01:58.7]} 15. Ncd5
{[%clk 0:02:22.2]} 15... Nxd5 {[%clk 0:01:54.5]} 16. Nxd5 {[%clk 0:02:21.1]}
16... Bxd5 {[%clk 0:01:51.7]} 17. exd5 {[%clk 0:02:21.3]} 17... f5 {[%clk
0:01:39.3]} 18. f4 {[%clk 0:02:15.8]} 18... Bh4 {[%clk 0:01:34]} 19. Re2 {[%clk
0:02:06.7]} 19... Bg3 {[%clk 0:01:28.6]} 20. Qf1 {[%clk 0:02:05.3]} 20... g5
{[%clk 0:01:22.8]} 21. fxg5 {[%clk 0:01:51.5]} 21... f4 {[%clk 0:01:22.4]} 22.
Qf3 {[%clk 0:01:51.7]} 22... Rf5 {[%clk 0:01:21.4]} 23. c3 {[%clk 0:01:23.8]}
23... a5 {[%clk 0:01:20.8]} 24. Bd2 {[%clk 0:01:06.6]} 24... Rxg5 {[%clk
0:01:20]} 25. Kh1 {[%clk 0:00:54.5]} 25... bxc3 {[%clk 0:01:14.3]} 26. bxc3
{[%clk 0:00:53.2]} 26... Qb6 {[%clk 0:01:13.4]} 27. Ra3 {[%clk 0:00:13.1]} 27...
Qb7 {[%clk 0:01:08.5]} 28. Qe4 {[%clk 0:00:10.8]} 28... Rg6 {[%clk 0:00:34.6]}
29. d4 {[%clk 0:00:10.3]} 29... f3 {[%clk 0:00:24.5]} 30. Qxf3 {[%clk 0:00:10]}
30... Rf8 {[%clk 0:00:15.9]} 31. Qxf8+ {[%clk 0:00:09.9]} 31... Kxf8 {[%clk
0:00:16]} 32. dxc5 {[%clk 0:00:09.8]} 32... Qxd5 {[%clk 0:00:15.4]} 33. Ra1
{[%clk 0:00:09.6]} 33... dxc5 {[%clk 0:00:15.1]} 34. Rf1+ {[%clk 0:00:08.5]}
34... Kg7 {[%clk 0:00:15.3]} 35. Be3 {[%clk 0:00:07.1]} 35... Qd3 {[%clk
0:00:15.3]} 0-1

[Event "*** Titled Tuesday Blitz"]
[Site "Chess.com"]
[Date "2020.10.27"]
[Round "2"]
[White "Misticpikachu"]
[Black "Sharpchess22"]
[Result "0-1"]
[WhiteElo "2353"]
[BlackElo "2761"]
[TimeControl "180+1"]
[EndTime "10:18:00 PDT"]
[Termination "Sharpchess22 won by resignation"]

1. c4 {[%clk 0:03:00.9]} 1... g6 {[%clk 0:02:59]} 2. Nc3 {[%clk 0:03:00.4]} 2...
Bg7 {[%clk 0:02:59.2]} 3. d4 {[%clk 0:03:00.9]} 3... d6 {[%clk 0:02:58.9]} 4. e4
{[%clk 0:03:01.4]} 4... Nf6 {[%clk 0:02:58.4]} 5. h3 {[%clk 0:03:01.3]} 5... O-O
{[%clk 0:02:57.8]} 6. Be3 {[%clk 0:03:01]} 6... Nbd7 {[%clk 0:02:56.4]} 7. g4
{[%clk 0:03:00.4]} 7... e5 {[%clk 0:02:53.4]} 8. d5 {[%clk 0:03:00.3]} 8... Nc5
{[%clk 0:02:53.3]} 9. f3 {[%clk 0:03:00.7]} 9... h5 {[%clk 0:02:50.2]} 10. Nge2
{[%clk 0:02:59.8]} 10... Nh7 {[%clk 0:02:50.1]} 11. Qd2 {[%clk 0:02:58.2]} 11...
f5 {[%clk 0:02:32]} 12. gxf5 {[%clk 0:02:52.8]} 12... gxf5 {[%clk 0:02:31.4]}
13. Bh6 {[%clk 0:02:53.3]} 13... Qh4+ {[%clk 0:02:29.3]} 14. Kd1 {[%clk
0:02:52]} 14... Rf7 {[%clk 0:02:19.7]} 15. Rg1 {[%clk 0:02:35.2]} 15... fxe4
{[%clk 0:02:15.2]} 16. Nxe4 {[%clk 0:02:06.5]} 16... Nxe4 {[%clk 0:02:12]} 17.
fxe4 {[%clk 0:02:05.4]} 17... Qxe4 {[%clk 0:02:06.6]} 18. Ng3 {[%clk 0:01:37.7]}
18... Qg6 {[%clk 0:01:28.7]} 19. Bxg7 {[%clk 0:01:22.6]} 19... Rxg7 {[%clk
0:01:25.8]} 20. Bd3 {[%clk 0:01:19.3]} 20... Qg5 {[%clk 0:01:25.9]} 21. Qc2
{[%clk 0:00:46.4]} 21... Bxh3 {[%clk 0:01:17.3]} 22. Qh2 {[%clk 0:00:32.6]}
22... Bg4+ {[%clk 0:01:14.3]} 23. Kc2 {[%clk 0:00:33.1]} 23... Rf8 {[%clk
0:01:13.3]} 24. Raf1 {[%clk 0:00:28.9]} 24... Rxf1 {[%clk 0:01:07]} 25. Rxf1
{[%clk 0:00:29.8]} 25... Nf6 {[%clk 0:01:03.2]} 26. Nf5 {[%clk 0:00:18.2]} 26...
Bxf5 {[%clk 0:01:02.7]} 27. Rxf5 {[%clk 0:00:15.7]} 27... Qg2+ {[%clk
0:01:02.6]} 28. Qxg2 {[%clk 0:00:15.6]} 28... Rxg2+ {[%clk 0:01:03.4]} 29. Kc3
{[%clk 0:00:13.1]} 29... Kg7 {[%clk 0:01:03.2]} 30. b4 {[%clk 0:00:09.1]} 30...
Rg3 {[%clk 0:01:00.8]} 31. Kd2 {[%clk 0:00:08.4]} 31... h4 {[%clk 0:00:59.7]}
32. Rf2 {[%clk 0:00:05.8]} 32... h3 {[%clk 0:00:58.4]} 33. Ke2 {[%clk 0:00:06]}
33... Ng4 {[%clk 0:00:57]} 34. Rf1 {[%clk 0:00:03.9]} 34... h2 {[%clk
0:00:55.9]} 35. Rh1 {[%clk 0:00:03.1]} 35... Kf6 {[%clk 0:00:53.1]} 36. Rf1+
{[%clk 0:00:02.3]} 36... Kg5 {[%clk 0:00:52.6]} 37. Rh1 {[%clk 0:00:02.4]} 37...
Re3+ {[%clk 0:00:51.1]} 38. Kd2 {[%clk 0:00:02.5]} 38... Rg3 {[%clk 0:00:47.3]}
39. Ke2 {[%clk 0:00:02.5]} 39... Rg2+ {[%clk 0:00:43.3]} 40. Kf1 {[%clk
0:00:02.5]} 40... Rf2+ {[%clk 0:00:40.7]} 41. Ke1 {[%clk 0:00:02.5]} 41... Rxa2
{[%clk 0:00:37.8]} 42. Be2 {[%clk 0:00:03]} 42... Ra1+ {[%clk 0:00:37.4]} 43.
Bd1 {[%clk 0:00:03.4]} 43... Ne3 {[%clk 0:00:37.2]} 44. Rxh2 {[%clk 0:00:03.7]}
44... Nxd1 {[%clk 0:00:35.5]} 45. Kd2 {[%clk 0:00:04]} 45... Ra2+ {[%clk
0:00:34.4]} 46. Kd3 {[%clk 0:00:04.1]} 46... Rxh2 {[%clk 0:00:32.4]} 0-1

[Event "*** Titled Tuesday Blitz"]
[Site "Chess.com"]
[Date "2020.10.27"]
[Round "2"]
[White "Khazieva_Elza"]
[Black "Lagmantr"]
[Result "0-1"]
[WhiteElo "2472"]
[BlackElo "2738"]
[TimeControl "180+1"]
[EndTime "10:18:01 PDT"]
[Termination "Lagmantr won by resignation"]

1. e4 {[%clk 0:03:00.9]} 1... c6 {[%clk 0:02:58.7]} 2. d3 {[%clk 0:02:58.2]}
2... d5 {[%clk 0:02:58.8]} 3. Nd2 {[%clk 0:02:58.5]} 3... g6 {[%clk 0:02:58.5]}
4. Ngf3 {[%clk 0:02:57.5]} 4... Bg7 {[%clk 0:02:57.6]} 5. g3 {[%clk 0:02:57.9]}
5... Nf6 {[%clk 0:02:57.5]} 6. Bg2 {[%clk 0:02:58.2]} 6... O-O {[%clk 0:02:58]}
7. O-O {[%clk 0:02:58.3]} 7... Nbd7 {[%clk 0:02:54.7]} 8. e5 {[%clk 0:02:52.7]}
8... Ne8 {[%clk 0:02:54.2]} 9. d4 {[%clk 0:02:53.1]} 9... c5 {[%clk 0:02:47.4]}
10. c3 {[%clk 0:02:52.3]} 10... Nc7 {[%clk 0:02:47]} 11. Re1 {[%clk 0:02:46.3]}
11... cxd4 {[%clk 0:02:45.5]} 12. cxd4 {[%clk 0:02:45.9]} 12... Nb6 {[%clk
0:02:46]} 13. Nb3 {[%clk 0:02:37.3]} 13... Nc4 {[%clk 0:02:41.4]} 14. Nc5 {[%clk
0:02:25.4]} 14... b6 {[%clk 0:02:41]} 15. Nd3 {[%clk 0:02:25.7]} 15... Bb7
{[%clk 0:02:40.5]} 16. b3 {[%clk 0:02:23.5]} 16... Na5 {[%clk 0:02:38.8]} 17. h4
{[%clk 0:02:15.5]} 17... Rc8 {[%clk 0:02:34.4]} 18. h5 {[%clk 0:02:15.3]} 18...
Nb5 {[%clk 0:02:29.9]} 19. h6 {[%clk 0:02:09.2]} 19... Bh8 {[%clk 0:02:23.5]}
20. Bd2 {[%clk 0:01:56.3]} 20... Nc3 {[%clk 0:02:20]} 21. Bxc3 {[%clk
0:01:56.4]} 21... Rxc3 {[%clk 0:02:20.9]} 22. Qd2 {[%clk 0:01:40.6]} 22... Qc7
{[%clk 0:02:06.2]} 23. e6 {[%clk 0:01:21.3]} 23... f6 {[%clk 0:01:46.7]} 24. Nf4
{[%clk 0:01:09.7]} 24... Rc8 {[%clk 0:01:40.6]} 25. Ne2 {[%clk 0:00:49.9]} 25...
Rc2 {[%clk 0:01:37.5]} 26. Qe3 {[%clk 0:00:49.8]} 26... Ba6 {[%clk 0:00:53.7]}
27. Nh4 {[%clk 0:00:43.1]} 27... Nc6 {[%clk 0:00:43.1]} 28. Bxd5 {[%clk
0:00:37.9]} 28... Nb4 {[%clk 0:00:37.6]} 29. Be4 {[%clk 0:00:28]} 29... Rxe2
{[%clk 0:00:32.1]} 30. Rxe2 {[%clk 0:00:28.9]} 30... Bxe2 {[%clk 0:00:32.6]} 31.
Qxe2 {[%clk 0:00:29.8]} 31... f5 {[%clk 0:00:30.6]} 32. Bxf5 {[%clk 0:00:25.9]}
32... gxf5 {[%clk 0:00:30.2]} 33. Qh5 {[%clk 0:00:23.2]} 33... Bf6 {[%clk
0:00:27.8]} 34. Qf7+ {[%clk 0:00:18.7]} 34... Kh8 {[%clk 0:00:28]} 35. Nxf5
{[%clk 0:00:19.6]} 35... Rg8 {[%clk 0:00:24.8]} 36. Re1 {[%clk 0:00:12.3]} 36...
Nc6 {[%clk 0:00:24]} 37. Re4 {[%clk 0:00:11.7]} 37... Nd8 {[%clk 0:00:22.1]} 38.
Qh5 {[%clk 0:00:09.8]} 38... Qc2 {[%clk 0:00:21.4]} 39. Rg4 {[%clk 0:00:07.9]}
39... Qd1+ {[%clk 0:00:21.5]} 40. Kg2 {[%clk 0:00:07.7]} 40... Qxg4 {[%clk
0:00:22.1]} 0-1

[Event "*** Titled Tuesday Blitz"]
[Site "Chess.com"]
[Date "2020.10.27"]
[Round "2"]
[White "TomiLen"]
[Black "IngOscarArdila"]
[Result "0-1"]
[WhiteElo "2637"]
[BlackElo "2175"]
[TimeControl "180+1"]
[EndTime "10:18:01 PDT"]
[Termination "IngOscarArdila won by resignation"]

1. d4 {[%clk 0:03:00.9]} 1... Nf6 {[%clk 0:02:59.6]} 2. Bg5 {[%clk 0:03:00.8]}
2... e6 {[%clk 0:02:59.1]} 3. e4 {[%clk 0:03:00.2]} 3... Be7 {[%clk 0:02:59.3]}
4. e5 {[%clk 0:02:59.5]} 4... Nd5 {[%clk 0:02:59.1]} 5. Bd2 {[%clk 0:02:59.5]}
5... d6 {[%clk 0:02:57.6]} 6. c4 {[%clk 0:02:58.5]} 6... Nb6 {[%clk 0:02:56.9]}
7. Qg4 {[%clk 0:02:49.9]} 7... g6 {[%clk 0:02:55.5]} 8. Nf3 {[%clk 0:02:48.7]}
8... h5 {[%clk 0:02:54.8]} 9. Qg3 {[%clk 0:02:46.7]} 9... dxe5 {[%clk
0:02:53.4]} 10. dxe5 {[%clk 0:02:45.6]} 10... Nc6 {[%clk 0:02:51.1]} 11. Nc3
{[%clk 0:02:45.2]} 11... Nd4 {[%clk 0:02:42.4]} 12. O-O-O {[%clk 0:02:37.9]}
12... Nf5 {[%clk 0:02:42.4]} 13. Qh3 {[%clk 0:02:31.4]} 13... Bd7 {[%clk
0:02:41.5]} 14. Bd3 {[%clk 0:02:21.4]} 14... c6 {[%clk 0:02:35.2]} 15. g4 {[%clk
0:02:18.5]} 15... Ng7 {[%clk 0:02:29.2]} 16. Rhg1 {[%clk 0:02:17.4]} 16... Qc7
{[%clk 0:02:26.4]} 17. Ne4 {[%clk 0:02:04.4]} 17... O-O-O {[%clk 0:02:23.3]} 18.
g5 {[%clk 0:02:03.6]} 18... Nf5 {[%clk 0:02:21.8]} 19. Bc3 {[%clk 0:02:01.9]}
19... Kb8 {[%clk 0:02:18]} 20. Bc2 {[%clk 0:01:58.7]} 20... Bc8 {[%clk
0:02:16.8]} 21. Nd6 {[%clk 0:01:54.5]} 21... Rhf8 {[%clk 0:02:03.8]} 22. Bxf5
{[%clk 0:01:50]} 22... exf5 {[%clk 0:02:04]} 23. Qg3 {[%clk 0:01:50.2]} 23...
Be6 {[%clk 0:02:03.2]} 24. b3 {[%clk 0:01:49.4]} 24... Nc8 {[%clk 0:02:02.7]}
25. c5 {[%clk 0:01:42]} 25... Ka8 {[%clk 0:02:01.2]} 26. Rd2 {[%clk 0:01:40.2]}
26... b6 {[%clk 0:01:42.1]} 27. Rgd1 {[%clk 0:01:29.8]} 27... bxc5 {[%clk
0:01:38.8]} 28. Qf4 {[%clk 0:01:30]} 28... Nb6 {[%clk 0:01:37.5]} 29. Kc2 {[%clk
0:01:25.9]} 29... c4 {[%clk 0:01:33.1]} 30. Nxc4 {[%clk 0:01:21.5]} 30... Nxc4
{[%clk 0:01:30.3]} 31. bxc4 {[%clk 0:01:21.5]} 31... Rxd2+ {[%clk 0:01:29.3]}
32. Rxd2 {[%clk 0:01:20.7]} 32... Rd8 {[%clk 0:01:29.9]} 33. Nd4 {[%clk
0:01:18.2]} 33... Bxc4 {[%clk 0:01:27.4]} 34. Nxf5 {[%clk 0:01:12.4]} 34...
Rxd2+ {[%clk 0:01:19.5]} 35. Kxd2 {[%clk 0:01:07]} 35... Qd7+ {[%clk 0:01:08.5]}
36. Qd4 {[%clk 0:00:45]} 36... Bxg5+ {[%clk 0:01:04]} 37. Ke1 {[%clk 0:00:36.3]}
37... Qxf5 {[%clk 0:00:56.9]} 38. Qxc4 {[%clk 0:00:35.1]} 38... Qb1+ {[%clk
0:00:56.9]} 39. Ke2 {[%clk 0:00:34.3]} 39... Qc2+ {[%clk 0:00:55.8]} 40. Kf1
{[%clk 0:00:28.7]} 40... Qd1+ {[%clk 0:00:55.8]} 41. Kg2 {[%clk 0:00:27.9]}
41... Qd5+ {[%clk 0:00:55]} 42. Qxd5 {[%clk 0:00:27.5]} 42... cxd5 {[%clk
0:00:55.9]} 43. Bd4 {[%clk 0:00:23.7]} 43... Kb7 {[%clk 0:00:54.9]} 44. Kg3
{[%clk 0:00:23.1]} 44... a5 {[%clk 0:00:54.4]} 45. f4 {[%clk 0:00:23.1]} 45...
Be7 {[%clk 0:00:54]} 46. f5 {[%clk 0:00:20.5]} 46... Kc6 {[%clk 0:00:50.9]} 47.
Kf4 {[%clk 0:00:15.7]} 47... g5+ {[%clk 0:00:46.5]} 48. Kf3 {[%clk 0:00:15.6]}
48... Kb5 {[%clk 0:00:45.3]} 49. h3 {[%clk 0:00:10.9]} 49... Kc4 {[%clk
0:00:45.1]} 50. Ke3 {[%clk 0:00:11.2]} 50... g4 {[%clk 0:00:44]} 51. hxg4 {[%clk
0:00:10.9]} 51... Bg5+ {[%clk 0:00:43.2]} 52. Kf3 {[%clk 0:00:09.4]} 52... Kxd4
{[%clk 0:00:41.4]} 0-1